bitfinex/quotes_SOLUSD_20250418
["timestamp","ask_amount","ask_price","bid_price","bid_amount"]
[1744936021149,26.07573437,134.23,134.19,13.64775358]
[1744936021550,26.07573437,134.23,134.2,13.64775358]
[1744936021851,26.07573437,134.23,134.21,13.64775358]
[1744936022057,7.44989942,134.23,134.22,13.64775358]
[1744936022461,7.44878957,134.25,134.23,0.14216157]
[1744936022657,7.44878957,134.25,134.24,13.64775358]
[1744936023246,7.44768004,134.27,134.24,13.64775358]
[1744936023769,7.44768004,134.27,134.26,13.64775358]
[1744936024873,7.50901638,134.3,134.26,13.64775358]
[1744936025046,7.50901638,134.3,134.27,13.64775358]
[1744936025242,26.12405733,134.3,134.27,13.64775358]
[1744936025569,13.64775358,134.29,134.25,13.78991515]
[1744936025747,13.64775358,134.29,134.25,0.14216157]
[1744936026346,13.64775358,134.29,134.25,13.78991515]
[1744936027369,7.4471254,134.28,134.25,13.78991515]
[1744936028266,13.64775358,134.27,134.24,82.9]
[1744936028444,13.64775358,134.27,134.23,39.64775358]
[1744936029472,21.09654315,134.25,134.2,131.62775358]
[1744936029671,39.71851707,134.25,134.2,157.62775358]
[1744936029874,39.71851707,134.25,134.21,0.14216157]
[1744936030673,39.71851707,134.25,134.21,13.78991515]
[1744936031170,7.44878957,134.25,134.24,13.64775358]
[1744936031376,18.61874692,134.28,134.24,13.64775358]
[1744936031567,18.61874692,134.28,134.25,13.64775358]
[1744936033044,7.44657085,134.29,134.27,13.64775358]
[1744936033458,26.06299798,134.29,134.26,13.64775358]
[1744936034871,39.71075156,134.29,134.25,13.78991515]
[1744936035170,26.06299798,134.29,134.25,13.78991515]
[1744936037274,26.06299798,134.29,134.25,0.14216157]
[1744936037464,26.06299798,134.29,134.25,13.78991515]
[1744936037662,26.06299798,134.29,134.26,13.64775358]
[1744936039672,26.06299798,134.29,134.25,13.78991515]
[1744936040379,26.06299798,134.29,134.26,13.64775358]
[1744936044786,26.06299798,134.29,134.27,13.64775358]
[1744936045483,26.06299798,134.29,134.26,13.64775358]
[1744936046987,18.61642713,134.29,134.26,13.64775358]
[1744936050592,32.26418071,134.29,134.25,13.64775358]
[1744936050777,32.26418071,134.29,134.24,96.54775358]
[1744936050973,32.26418071,134.29,134.24,13.64775358]
[1744936051469,18.61642713,134.29,134.25,13.64775358]
[1744936052795,26.06299798,134.29,134.25,13.64775358]
[1744936053087,0.063,134.3,134.28,14.07423829]
[1744936053290,0.063,134.3,134.29,8.87292682]
[1744936053484,7.50901638,134.3,134.29,8.87292682]
[1744936054498,0.063,134.3,134.29,8.87292682]
[1744936055269,0.063,134.3,134.29,13.78473351]
[1744936056194,0.063,134.3,134.28,83.18432314]
[1744936056195,0.063,134.3,134.28,82.9]
[1744936056495,13.70557194,134.3,134.28,82.9]
[1744936056680,0.063,134.3,134.28,82.9]
[1744936056880,0.063,134.3,134.26,39.64257194]
[1744936057081,0.063,134.3,134.27,13.64257194]
[1744936057296,0.063,134.3,134.26,26.0]
[1744936057297,26.12405733,134.3,134.26,39.64257194]
[1744936057505,26.12405733,134.3,134.27,13.64257194]
[1744936059697,0.063,134.3,134.27,13.64257194]
[1744936061387,0.063,134.3,134.28,13.64257194]
[1744936066807,0.063,134.3,134.29,13.64257194]
[1744936067907,0.063,134.3,134.29,39.78473351]
[1744936069913,0.063,134.3,134.29,122.68473351]
[1744936074407,0.063,134.3,134.29,39.78473351]
[1744936075416,0.063,134.3,134.29,34.87317171]
[1744936075712,0.063,134.3,134.29,35.15749485]
[1744936080200,0.063,134.3,134.29,118.05749485]
[1744936083128,0.063,134.3,134.29,151.70714371]
[1744936083309,0.063,134.3,134.29,156.17508622]
[1744936083633,0.063,134.32,134.31,26.14216157]
[1744936083800,0.063,134.32,134.31,117.77317171]
[1744936085827,0.063,134.32,134.31,141.1744209]
[1744936086035,0.03,134.34,134.32,39.07613357]
[1744936086215,0.03,134.34,134.33,88.73118427]
[1744936086739,0.03,134.34,134.33,35.15749485]
[1744936094937,0.03,134.36,134.34,65.07613357]
[1744936095229,0.063,134.38,134.37,26.14216157]
[1744936095532,0.063,134.38,134.37,34.87317171]
[1744936095837,0.063,134.38,134.37,35.15749485]
[1744936098932,0.063,134.38,134.37,68.72714371]
[1744936100138,0.063,134.38,134.37,35.15749485]
[1744936103318,0.03,134.42,134.41,26.28432314]
[1744936103531,0.03,134.42,134.41,118.05749485]
[1744936107728,0.03,134.42,134.41,117.77317171]
[1744936108049,0.03,134.42,134.41,82.9]
[1744936112548,0.03,134.42,134.4,8.73101014]
[1744936113541,0.03,134.42,134.41,8.73101014]
[1744936121355,0.03,134.42,134.41,8.87317171]
[1744936122361,0.03,134.42,134.39,0.28432314]
[1744936122543,0.03,134.42,134.39,0.42648471]
[1744936122737,0.03,134.42,134.4,8.73101014]
[1744936123460,0.03,134.42,134.41,8.73101014]
[1744936125465,0.03,134.42,134.41,8.87317171]
[1744936127459,0.03,134.42,134.4,8.73101014]
[1744936127868,0.03,134.42,134.41,8.73101014]
[1744936128256,0.03,134.42,134.39,0.42648471]
[1744936128565,0.03,134.42,134.4,8.73101014]
[1744936128752,0.03,134.42,134.39,8.87317171]
[1744936129066,0.03,134.42,134.4,8.73101014]
[1744936137660,0.03,134.42,134.36,117.82]
[1744936137873,8.73101014,134.38,134.34,0.063]
[1744936138046,10.39001014,134.37,134.34,0.063]
[1744936139453,7.44269127,134.36,134.34,0.063]
[1744936139861,16.17370141,134.36,134.34,0.063]
[1744936140246,7.44269127,134.36,134.34,0.063]
[1744936141378,16.17370141,134.36,134.34,0.063]
[1744936141572,5.55305385,134.35,134.34,0.063]
[1744936141878,14.28406399,134.35,134.34,0.063]
[1744936142172,5.55305385,134.35,134.34,0.063]
[1744936142374,16.17370141,134.36,134.34,0.063]
[1744936142746,7.44269127,134.36,134.34,0.063]
[1744936150376,8.73101014,134.35,134.34,0.063]
[1744936152376,16.17425539,134.35,134.34,0.063]
[1744936152950,21.70680685,134.35,134.34,0.063]
[1744936155273,16.17425539,134.35,134.34,0.063]
[1744936155684,34.78236852,134.35,134.3,0.063]
[1744936155869,8.73101014,134.33,134.3,0.063]
[1744936157782,7.44490768,134.32,134.3,0.063]
[1744936157973,8.73101014,134.31,134.3,0.063]
[1744936158279,23.88681782,134.32,134.3,0.063]
[1744936158676,7.44490768,134.32,134.3,0.063]
[1744936159962,7.44446983,134.33,134.31,8.73101014]
[1744936160281,7.44446983,134.33,134.3,0.063]
[1744936160585,7.44446983,134.33,134.31,8.73101014]
[1744936160772,7.44446983,134.33,134.3,8.93617171]
[1744936162390,7.44379931,134.34,134.31,8.73101014]
[1744936162591,7.44379931,134.34,134.32,8.73101014]
[1744936163880,7.44379931,134.34,134.31,8.73101014]
[1744936164076,7.44379931,134.34,134.3,8.93617171]
[1744936164391,26.05329759,134.34,134.3,8.93617171]
[1744936164585,34.78430773,134.34,134.3,0.20516157]
[1744936164791,34.78430773,134.34,134.3,0.063]
[1744936165792,26.05329759,134.34,134.3,8.79401014]
[1744936166367,7.44324525,134.35,134.31,8.73101014]
[1744936167492,7.44324525,134.35,134.32,8.73101014]
[1744936168693,16.17370141,134.36,134.32,8.73101014]
[1744936170397,34.7804296,134.36,134.31,8.73101014]
[1744936177486,26.04941946,134.36,134.32,8.73101014]
[1744936177875,34.7804296,134.36,134.31,8.73101014]
[1744936180206,7.44379931,134.34,134.31,8.73101014]
[1744936182501,7.44324525,134.35,134.31,8.73101014]
[1744936183104,5.55873847,134.34,134.31,8.73101014]
[1744936183899,7.44324525,134.35,134.31,8.73101014]
[1744936184101,8.73101014,134.34,134.3,0.20516157]
[1744936184903,34.78236852,134.35,134.3,8.93617171]
[1744936186402,7.44435345,134.33,134.3,8.93617171]
[1744936187399,7.44379931,134.34,134.3,8.93617171]
[1744936188404,7.44490768,134.32,134.3,8.93617171]
[1744936189290,0.07681586,134.34,134.33,26.0]
[1744936189605,0.07681586,134.34,134.33,35.01533328]
[1744936192414,0.07681586,134.34,134.32,83.04216157]
[1744936192415,0.07681586,134.34,134.32,91.77317171]
[1744936192587,0.07681586,134.34,134.32,82.9]
[1744936193711,7.52061517,134.34,134.32,82.9]
[1744936194083,7.52061517,134.34,134.3,0.20516157]
[1744936194084,8.73101014,134.33,134.3,0.063]
[1744936194496,34.86112359,134.34,134.3,0.063]
[1744936197302,34.86112359,134.34,134.3,8.79401014]
[1744936197486,7.52061517,134.34,134.3,8.79401014]
[1744936197687,7.52061517,134.34,134.31,8.73101014]
[1744936199605,7.52061517,134.34,134.3,8.93617171]
[1744936200407,0.07681586,134.34,134.33,8.73101014]
[1744936200580,0.07681586,134.34,134.33,8.87317171]
[1744936202682,0.07681586,134.34,134.33,8.73101014]
[1744936202879,0.07681586,134.34,134.33,26.0]
[1744936203284,8.807826,134.34,134.31,26.0]
[1744936203501,8.807826,134.34,134.3,0.063]
[1744936203710,8.73101014,134.33,134.3,0.063]
[1744936204621,7.44490768,134.32,134.3,0.063]
[1744936206284,11.51347637,134.31,134.3,0.063]
[1744936206611,11.51347637,134.31,134.3,1e-08]
[1744936208292,18.95893836,134.31,134.3,1e-08]
[1744936208518,10.22792822,134.31,134.3,8.73101015]
[1744936209199,7.44546199,134.31,134.3,8.73101015]
[1744936209811,7.44435345,134.33,134.3,1e-08]
[1744936210112,8.73101014,134.32,134.3,1e-08]
[1744936210613,16.17536359,134.33,134.3,1e-08]
[1744936210912,8.33651574,134.32,134.3,1e-08]
[1744936211388,8.33651574,134.32,134.31,34.87317171]
[1744936211589,5.55767724,134.32,134.31,35.15749485]
[1744936212092,5.55767724,134.32,134.31,34.87317171]
[1744936212294,7.44324525,134.35,134.31,34.87317171]
[1744936212492,7.44324525,134.35,134.32,8.73101014]
[1744936213009,7.44324525,134.35,134.31,34.87317171]
[1744936213316,16.17425539,134.35,134.31,34.87317171]
[1744936213818,16.17425539,134.35,134.31,26.0]
[1744936214004,2.77812863,134.34,134.31,26.0]
[1744936214716,16.17425539,134.35,134.31,26.0]
[1744936214920,16.17425539,134.35,134.31,34.73101014]
[1744936215216,7.44324525,134.35,134.31,34.73101014]
[1744936219006,0.07681586,134.34,134.31,34.73101014]
[1744936220032,0.07681586,134.34,134.32,8.73101014]
[1744936221321,0.07681586,134.34,134.31,34.73101014]
[1744936222017,0.07681586,134.34,134.32,8.73101014]
[1744936222404,0.07681586,134.34,134.33,8.73101014]
[1744936225094,0.07681586,134.34,134.32,8.73101014]
[1744936226519,0.07681586,134.34,134.33,8.73101014]
[1744936228800,0.07681586,134.34,134.32,8.87317171]
[1744936229417,0.07681586,134.34,134.32,8.73101014]
[1744936229624,0.07681586,134.34,134.31,34.73101014]
[1744936230231,0.07681586,134.34,134.33,26.0]
[1744936230400,0.07681586,134.34,134.33,34.87317171]
[1744936231327,0.07681586,134.34,134.33,88.73118427]
[1744936231505,0.03,134.4,134.35,0.28432314]
[1744936231703,2.77633555,134.39,134.38,8.73101014]
[1744936232012,2.77633555,134.39,134.37,8.73101014]
[1744936232530,7.47047619,134.4,134.37,8.73101014]
[1744936233119,7.47047619,134.4,134.38,8.73101014]
[1744936233513,7.47047619,134.4,134.37,34.87317171]
[1744936234417,0.03,134.4,134.37,34.87317171]
[1744936234933,8.76101014,134.4,134.35,26.0]
[1744936235135,8.76101014,134.4,134.36,8.73101014]
[1744936235325,0.03,134.4,134.36,8.73101014]
[1744936236416,0.03,134.4,134.37,8.73101014]
[1744936237517,8.73101014,134.39,134.34,14.88]
[1744936237715,8.73101014,134.37,134.32,91.63101014]
[1744936238037,8.73101014,134.35,134.3,106.51101015]
[1744936238225,8.73101014,134.35,134.31,8.73101014]
[1744936238430,7.44379931,134.34,134.31,8.73101014]
[1744936238631,7.44379931,134.34,134.31,34.73101014]
[1744936239133,7.44379931,134.34,134.31,39.64060645]
[1744936241541,7.44379931,134.34,134.31,13.64060645]
[1744936242538,21.08440576,134.34,134.3,14.88000001]
[1744936243037,13.64060645,134.32,134.3,1e-08]
[1744936243219,27.63049759,134.34,134.3,1e-08]
[1744936243220,13.64060645,134.31,134.3,1e-08]
[1744936243421,21.08606844,134.31,134.3,1e-08]
[1744936245128,44.08605167,134.31,134.3,1e-08]
[1744936245529,49.63126696,134.31,134.3,1e-08]
[1744936247745,44.08605167,134.31,134.3,1e-08]
[1744936250142,49.62411219,134.31,134.3,1e-08]
[1744936250727,30.97446333,134.31,134.3,1e-08]
[1744936251042,10.21859636,134.31,134.3,1e-08]
[1744936251225,7.44546199,134.31,134.3,1e-08]
[1744936252221,13.64060645,134.33,134.3,1e-08]
[1744936252222,7.44490768,134.32,134.3,1e-08]
[1744936253146,7.44435345,134.33,134.3,1e-08]
[1744936255953,21.0849599,134.33,134.3,1e-08]
[1744936256432,13.64060645,134.32,134.3,1e-08]
[1744936256842,39.69584354,134.33,134.3,1e-08]
[1744936261160,34.78839247,134.33,134.3,1e-08]
[1744936261546,7.44435345,134.33,134.3,8.73315539]
[1744936262653,26.05329759,134.34,134.3,8.73315539]
[1744936262841,34.78645297,134.34,134.3,8.73315539]
[1744936264065,8.73315538,134.32,134.3,1e-08]
[1744936264381,8.73315538,134.31,134.3,1e-08]
[1744936264740,16.17861737,134.31,134.3,1e-08]
[1744936265245,21.09779003,134.31,134.3,1e-08]
[1744936265645,18.64964886,134.28,134.27,0.063]
[1744936265847,13.65232804,134.28,134.26,1e-08]
[1744936266046,18.64964886,134.26,134.24,1e-08]
[1744936266245,21.85482804,134.25,134.24,1e-08]
[1744936266646,21.85482804,134.25,134.22,0.063]
[1744936266647,18.64964886,134.24,134.22,1e-08]
[1744936266855,18.64964886,134.22,134.2,1e-08]
[1744936267057,13.65232804,134.21,134.2,1e-08]
[1744936267262,13.65232804,134.21,134.17,0.063]
[1744936267457,13.65232804,134.18,134.17,0.063]
[1744936268450,13.65232804,134.19,134.17,0.063]
[1744936268765,7.45267551,134.18,134.17,0.063]
[1744936269371,21.10500355,134.18,134.17,0.063]
[1744936272078,21.10500355,134.18,134.16,1e-08]
[1744936272258,13.65232804,134.17,134.16,1e-08]
[1744936274074,21.10555901,134.17,134.16,1e-08]
[1744936277480,39.75520787,134.17,134.16,1e-08]
[1744936277672,99.71477001,134.17,134.14,1e-08]
[1744936277876,32.3019769,134.15,134.14,1e-08]
[1744936278879,39.75631905,134.15,134.14,1e-08]
[1744936288382,21.10667019,134.15,134.14,1e-08]
[1744936288894,39.75631905,134.15,134.14,1e-08]
[1744936290695,21.10667019,134.15,134.14,1e-08]
[1744936291488,39.73357131,134.2,134.14,13.65232805]
[1744936291787,26.08124327,134.2,134.16,13.65232804]
[1744936291989,26.08124327,134.2,134.17,13.65232804]
[1744936292292,7.45156482,134.2,134.17,13.65232804]
[1744936293289,0.063,134.23,134.19,13.65232804]
[1744936293290,7.45045447,134.22,134.19,13.65232804]
[1744936293600,7.45045447,134.22,134.2,13.65232804]
[1744936293807,0.063,134.23,134.21,13.65232804]
[1744936293978,0.063,134.23,134.22,13.65232804]
[1744936296005,0.063,134.23,134.21,13.65232804]
[1744936297302,0.063,134.23,134.22,13.65232804]
[1744936298010,0.063,134.23,134.2,0.14216157]
[1744936298188,0.063,134.23,134.2,13.79448961]
[1744936298395,0.063,134.23,134.21,13.65232804]
[1744936298697,0.063,134.23,134.2,13.65232804]
[1744936299686,0.063,134.23,134.21,13.65232804]
[1744936300091,0.063,134.23,134.2,13.65232804]
[1744936303195,0.063,134.23,134.21,13.65232804]
[1744936312694,0.063,134.23,134.2,13.79448961]
[1744936312916,0.063,134.23,134.21,13.65232804]
[1744936315811,0.063,134.23,134.22,13.79448961]
[1744936316191,0.063,134.23,134.22,14.07881275]
[1744936317220,0.063,134.23,134.22,9.16553459]
[1744936317418,0.063,134.23,134.22,41.12589817]
[1744936317796,0.063,134.23,134.22,142.67554703]
[1744936318423,0.063,134.23,134.22,136.71518345]
[1744936319211,0.063,134.23,134.22,122.97945795]
[1744936319437,0.063,134.23,134.22,26.0]
[1744936319798,0.063,134.23,134.22,39.65297324]
[1744936321723,0.063,134.23,134.22,26.0]
[1744936322130,0.063,134.23,134.22,39.65297324]
[1744936325125,0.063,134.23,134.22,13.65297324]
[1744936325333,0.063,134.23,134.2,26.0]
[1744936325510,13.65297324,134.21,134.16,14.88]
[1744936325709,13.65297324,134.21,134.16,28.53297324]
[1744936326030,13.65297324,134.21,134.17,0.14216157]
[1744936326234,26.08047689,134.2,134.16,14.88]
[1744936326411,13.65297324,134.17,134.14,1e-08]
[1744936327931,13.65297324,134.16,134.14,1e-08]
[1744936328106,13.65297324,134.15,134.14,1e-08]
[1744936328313,21.10731539,134.15,134.14,1e-08]
[1744936330433,39.75696425,134.15,134.14,1e-08]
[1744936330612,66.04128739,134.15,134.14,1e-08]
[1744936332227,65.75696425,134.15,134.14,1e-08]
[1744936335838,7.45434215,134.15,134.14,1e-08]
[1744936336043,21.10731539,134.15,134.14,1e-08]
[1744936336635,7.45267551,134.18,134.14,1e-08]
[1744936336836,7.45267551,134.18,134.14,13.65297325]
[1744936337139,7.45267551,134.18,134.16,13.65297324]
[1744936337345,7.45267551,134.18,134.15,13.65297324]
[1744936337728,7.45267551,134.18,134.16,13.65297324]
[1744936337930,7.45212012,134.19,134.16,13.65297324]
[1744936338129,7.45212012,134.19,134.14,0.14216158]
[1744936338338,7.45212012,134.19,134.15,13.65297324]
[1744936338639,7.45212012,134.19,134.16,13.65297324]
[1744936339024,7.45173798,134.2,134.17,13.65297324]
[1744936346055,21.10471122,134.2,134.14,1e-08]
[1744936346235,13.65297324,134.19,134.14,13.65297325]
[1744936346555,39.73362329,134.2,134.16,13.65297324]
[1744936347149,7.45173798,134.2,134.17,13.65297324]
[1744936347447,7.45173798,134.2,134.18,13.65297324]
[1744936347821,7.45173798,134.2,134.17,13.65297324]
[1744936348221,0.063,134.23,134.19,13.65297324]
[1744936348450,0.063,134.23,134.22,13.65297324]
[1744936348961,7.51289942,134.23,134.22,13.65297324]
[1744936349468,0.063,134.23,134.22,13.65297324]
[1744936349738,0.063,134.23,134.22,13.79513481]
[1744936351566,0.063,134.23,134.22,46.03982153]
[1744936351725,0.063,134.23,134.22,79.56947039]
[1744936351925,0.063,134.23,134.22,54.95945795]
[1744936352228,0.063,134.23,134.22,54.67513481]
[1744936353336,0.063,134.23,134.22,54.53297324]
[1744936353646,0.063,134.23,134.21,13.65297324]
[1744936355551,13.65297324,134.22,134.16,0.14216157]
[1744936355852,13.65297324,134.21,134.17,39.65297324]
[1744936356044,13.65297324,134.22,134.18,39.65297324]
[1744936356348,13.65297324,134.21,134.18,26.0]
[1744936356848,7.45100961,134.21,134.18,26.0]
[1744936357443,13.65297324,134.2,134.16,0.14216157]
[1744936357649,13.65297324,134.19,134.16,26.0]
[1744936357830,39.73150687,134.21,134.16,13.65297324]
[1744936358040,26.07853363,134.21,134.17,13.65297324]
[1744936358623,39.73150687,134.21,134.17,26.0]
[1744936359732,7.45100961,134.21,134.17,39.65297324]
[1744936360047,7.45100961,134.21,134.18,13.65297324]
[1744936360436,7.45100961,134.21,134.17,39.65297324]
[1744936360437,21.10398285,134.21,134.17,39.65297324]
[1744936361344,7.45100961,134.21,134.17,39.65297324]
[1744936362453,7.45100961,134.21,134.18,13.65297324]
[1744936363439,7.45058379,134.22,134.2,13.65297324]
[1744936363641,7.45058379,134.22,134.21,13.65297324]
[1744936363959,7.51309957,134.23,134.21,13.65297324]
[1744936364254,0.063,134.23,134.22,13.65297324]
[1744936367359,0.063,134.23,134.2,39.65297324]
[1744936368364,13.71597324,134.23,134.17,82.9]
[1744936368563,0.063,134.23,134.19,13.65297324]
[1744936368861,0.063,134.23,134.17,26.0]
[1744936368862,0.063,134.23,134.2,13.65297324]
[1744936369055,39.28867883,134.24,134.19,13.65297324]
[1744936369640,39.28867883,134.24,134.2,13.65297324]
[1744936369858,25.63570559,134.24,134.2,13.65297324]
[1744936370549,25.63570559,134.24,134.21,13.65297324]
[1744936373147,25.63570559,134.24,134.2,13.65297324]
[1744936374869,39.28867883,134.24,134.2,13.65297324]
[1744936375165,13.65297324,134.23,134.18,13.65297324]
[1744936375362,13.65297324,134.22,134.18,13.65297324]
[1744936375750,13.65297324,134.23,134.18,13.65297324]
[1744936376275,13.65297324,134.23,134.16,26.0]
[1744936376482,13.65297324,134.23,134.18,13.65297324]
[1744936376673,13.65297324,134.23,134.19,13.65297324]
[1744936376846,39.28867883,134.24,134.19,13.65297324]
[1744936377368,25.63570559,134.24,134.2,13.65297324]
[1744936377551,25.63570559,134.24,134.21,13.65297324]
[1744936378454,39.28867883,134.24,134.2,13.65297324]
[1744936378654,39.28867883,134.24,134.19,13.65297324]
[1744936379662,39.28867883,134.24,134.2,13.65297324]
[1744936379862,39.28867883,134.24,134.19,13.65297324]
[1744936381785,13.65297324,134.23,134.18,39.65297324]
[1744936381976,13.65297324,134.23,134.18,13.65297324]
[1744936382176,13.65297324,134.23,134.19,13.65297324]
[1744936382378,39.28867883,134.24,134.19,13.65297324]
[1744936382876,39.28867883,134.24,134.2,13.65297324]
[1744936383077,8.32922006,134.23,134.2,13.65297324]
[1744936383378,7.45045447,134.22,134.19,13.65297324]
[1744936384268,7.44989942,134.23,134.19,13.65297324]
[1744936384471,26.07464798,134.23,134.2,13.65297324]
[1744936385579,7.44989942,134.23,134.22,13.65297324]
[1744936385778,7.44989942,134.23,134.21,13.65297324]
[1744936386381,7.44934445,134.24,134.21,13.65297324]
[1744936387478,26.07270559,134.24,134.21,13.65297324]
[1744936389581,7.44934445,134.24,134.23,13.65297324]
[1744936389760,6.2621,134.27,134.23,13.65297324]
[1744936389761,7.44768004,134.27,134.23,13.65297324]
[1744936390080,7.44768004,134.27,134.26,13.65297324]
[1744936390666,26.12728079,134.29,134.26,13.65297324]
[1744936391174,2.77696492,134.28,134.25,13.65297324]
[1744936391772,2.77696492,134.28,134.26,13.65297324]
[1744936392174,26.12728079,134.29,134.26,13.65297324]
[1744936392688,26.12728079,134.29,134.25,13.65297324]
[1744936393070,39.78025403,134.29,134.24,13.65297324]
[1744936393985,2.77605536,134.28,134.24,13.65297324]
[1744936394587,2.77605536,134.27,134.24,13.65297324]
[1744936395187,7.44823476,134.26,134.24,13.65297324]
[1744936395891,21.101208,134.26,134.2,108.9]
[1744936396077,13.65297324,134.23,134.15,123.9646]
[1744936396274,13.65297324,134.23,134.18,39.65297324]
[1744936396793,13.65297324,134.23,134.18,13.65297324]
[1744936397084,6.2848,134.24,134.16,13.65297324]
[1744936397085,13.65297324,134.21,134.16,13.65297324]
[1744936397392,7.45156482,134.2,134.16,39.65297324]
[1744936397793,39.73345013,134.2,134.15,14.88]
[1744936397995,39.73345013,134.2,134.14,1e-08]
[1744936397996,13.65297324,134.19,134.14,13.65297325]
[1744936399273,7.45267551,134.18,134.14,13.65297325]
[1744936399473,39.73733752,134.18,134.14,1e-08]
[1744936399770,2.77611432,134.17,134.14,1e-08]
[1744936399985,16.42908756,134.17,134.14,1e-08]
[1744936400386,2.77611432,134.17,134.15,13.65297324]
[1744936400582,7.45267551,134.18,134.16,13.65297324]
[1744936403198,7.45156482,134.2,134.16,13.65297324]
[1744936403504,7.45156482,134.2,134.17,13.65297324]
[1744936403679,7.45156482,134.2,134.18,13.65297324]
[1744936403880,7.45156482,134.2,134.17,13.65297324]
[1744936404209,7.45156482,134.2,134.18,13.65297324]
[1744936404880,7.45156482,134.2,134.17,13.65297324]
[1744936406500,26.07940054,134.21,134.18,13.65297324]
[1744936407393,39.73237378,134.21,134.16,39.65297324]
[1744936407604,26.07940054,134.21,134.17,13.65297324]
[1744936411989,13.65297324,134.2,134.16,39.65297324]
[1744936412182,7.45212012,134.19,134.16,39.65297324]
[1744936413208,32.28136417,134.21,134.16,39.65297324]
[1744936413209,7.45100961,134.21,134.18,13.65297324]
[1744936413386,7.45100961,134.21,134.19,13.65297324]
[1744936414007,1.6263,134.25,134.2,13.65297324]
[1744936414212,7.44823476,134.26,134.24,13.65297324]
[1744936414379,7.44823476,134.26,134.25,13.65297324]
[1744936414587,10.22024082,134.26,134.24,13.65297324]
[1744936414796,10.22024082,134.26,134.23,13.65297324]
[1744936415403,10.22024082,134.26,134.24,13.65297324]
[1744936415586,7.44823476,134.26,134.24,13.65297324]
[1744936416499,7.44768004,134.27,134.24,13.65297324]
[1744936416927,26.06688015,134.27,134.23,13.65297324]
[1744936417206,13.65297324,134.26,134.21,13.65297324]
[1744936417412,26.06688015,134.27,134.22,13.65297324]
[1744936417413,39.71985339,134.27,134.22,13.65297324]
[1744936417914,13.65297324,134.24,134.19,39.65297324]
[1744936418084,13.65297324,134.24,134.2,26.0]
[1744936418293,15.24417324,134.25,134.2,39.65297324]
[1744936418616,39.72567883,134.24,134.2,39.65297324]
[1744936418815,39.72567883,134.24,134.2,13.65297324]
[1744936421831,45.88587883,134.24,134.19,13.65297324]
[1744936423202,13.65297324,134.22,134.17,13.65297324]
[1744936423418,13.65297324,134.21,134.17,13.65297324]
[1744936423609,16.42328892,134.23,134.18,13.65297324]
[1744936423809,13.65297324,134.22,134.17,13.65297324]
[1744936424397,13.65297324,134.2,134.16,13.65297324]
[1744936424602,13.65297324,134.2,134.15,13.65297324]
[1744936424917,26.08242044,134.19,134.15,13.65297324]
[1744936425307,39.73539368,134.19,134.14,13.65297325]
[1744936425525,39.73539368,134.19,134.15,13.65297324]
[1744936427445,26.07853363,134.21,134.16,13.65297324]
[1744936427609,7.45100961,134.21,134.2,13.65297324]
[1744936428332,7.45100961,134.21,134.19,13.65297324]
[1744936429724,26.07466206,134.23,134.19,13.65297324]
[1744936430739,39.7276353,134.23,134.18,13.65297324]
[1744936430915,13.65297324,134.21,134.16,13.65297324]
[1744936431329,26.07466206,134.23,134.18,13.65297324]
[1744936431330,13.65297324,134.22,134.18,13.65297324]
[1744936431530,39.7276353,134.23,134.19,13.65297324]
[1744936431725,13.65297324,134.2,134.16,26.0]
[1744936432045,13.65297324,134.2,134.15,13.65297324]
[1744936432937,7.45212012,134.19,134.15,13.65297324]
[1744936433443,39.73539368,134.19,134.15,13.65297324]
[1744936433741,13.65297324,134.18,134.14,39.65297325]
[1744936433944,13.65297324,134.18,134.14,26.00000001]
[1744936434845,7.45434215,134.15,134.14,1e-08]
[1744936437023,13.65297324,134.15,134.14,1e-08]
[1744936437227,13.65297324,134.16,134.14,1e-08]
[1744936437539,32.28648413,134.17,134.14,1e-08]
[1744936437740,18.63351089,134.17,134.14,1e-08]
[1744936437949,32.28648413,134.17,134.14,1e-08]
[1744936439043,39.7397151,134.17,134.14,1e-08]
[1744936439449,13.65297324,134.16,134.14,1e-08]
[1744936441246,7.45434215,134.15,134.14,1e-08]
[1744936443028,21.10731539,134.15,134.14,1e-08]
[1744936443234,21.10731539,134.15,134.13,1e-08]
[1744936443426,40.2075221,134.14,134.13,1e-08]
[1744936444852,42.97332574,134.14,134.13,1e-08]
[1744936445342,50.4282236,134.14,134.13,1e-08]
[1744936445750,69.06546826,134.14,134.11,1e-08]
[1744936445950,13.65297324,134.12,134.11,1e-08]
[1744936447753,21.10898278,134.12,134.11,1e-08]